bitfinex/quotes_ETHUSD_20251011
["timestamp","ask_amount","ask_price","bid_price","bid_amount"]
[1760193052351,0.6336,3819.2,3818.8,14.5]
[1760193052886,0.6336,3819.3,3818.8,14.5]
[1760193053050,0.03272936,3819.2,3818.8,14.5]
[1760193053252,3.25201795,3819.1,3818.8,14.5]
[1760193053497,0.6336,3818.7,3818.1,0.4416]
[1760193053678,0.03273451,3818.6,3818.0,0.2265]
[1760193053874,0.6336,3818.7,3818.0,0.2265]
[1760193054177,0.6336,3818.7,3817.8,2.61929264]
[1760193054178,1.92,3818.3,3817.7,0.4416]
[1760193054355,0.03273793,3818.2,3817.7,0.4416]
[1760193054549,0.1304,3818.0,3817.3,2.75004911]
[1760193054750,0.1304,3818.0,3817.3,0.1304]
[1760193054751,0.6336,3817.9,3817.3,0.1304]
[1760193054955,0.6336,3817.9,3817.5,2.61950331]
[1760193055179,0.6336,3817.9,3817.6,0.4416]
[1760193055380,2.5536,3818.8,3817.9,2.61924094]
[1760193055562,2.5536,3818.8,3818.0,0.6681]
[1760193055563,0.1304,3818.4,3818.0,0.6681]
[1760193055769,0.1304,3818.4,3818.0,0.2265]
[1760193056166,0.6336,3818.2,3817.3,3.06123937]
[1760193056367,0.764,3818.2,3817.5,0.1304]
[1760193056586,0.6336,3818.1,3817.5,0.1304]
[1760193056792,0.66633879,3818.1,3817.5,0.1304]
[1760193057085,0.66633879,3818.1,3817.4,2.61956205]
[1760193057298,0.66633879,3818.1,3816.1,0.002]
[1760193057299,30.6336,3817.3,3816.1,0.002]
[1760193057478,28.79644543,3816.2,3816.1,0.002]
[1760193057861,28.33527343,3816.2,3816.1,0.002]
[1760193058091,24.86548443,3816.2,3816.1,0.002]
[1760193058295,21.96368343,3816.2,3816.1,0.002]
[1760193058589,25.92181343,3816.2,3816.1,0.002]
[1760193059089,27.15879743,3816.2,3816.1,0.002]
[1760193059592,29.74382243,3816.2,3816.1,0.002]
[1760193060377,43.21008343,3816.2,3816.1,0.002]
[1760193060574,42.76878343,3816.2,3816.1,0.002]
[1760193060776,42.26678343,3816.2,3816.1,0.002]
[1760193061474,46.69840943,3816.2,3816.1,0.002]
[1760193061674,45.91040943,3816.2,3816.1,0.002]
[1760193061890,42.91240943,3816.2,3816.1,0.002]
[1760193062390,51.02165543,3816.2,3816.1,0.002]
[1760193062690,47.86867543,3816.2,3816.1,0.002]
[1760193062994,41.98061343,3816.2,3816.1,0.002]
[1760193063366,21.96368343,3816.2,3816.1,0.002]
[1760193063566,45.47321643,3816.2,3816.1,0.002]
[1760193063970,41.54417743,3816.2,3816.1,0.002]
[1760193064587,40.86178843,3816.2,3816.1,0.002]
[1760193064983,40.13131943,3816.2,3816.1,0.002]
[1760193065359,25.63719843,3816.2,3816.1,0.002]
[1760193065586,25.63704843,3816.2,3816.1,0.002]
[1760193066097,5.412012,3816.2,3816.1,0.002]
[1760193066414,4.778412,3816.2,3816.1,0.002]
[1760193066700,4.775786,3816.2,3816.1,0.002]
[1760193067002,2.61978319,3817.2,3816.1,0.4658]
[1760193067167,19.40026079,3817.4,3816.1,0.6855]
[1760193067168,9.236496,3817.0,3816.1,0.6855]
[1760193067379,0.03274737,3817.1,3816.1,0.6855]
[1760193067380,0.1304,3816.4,3816.1,0.6855]
[1760193067703,0.03274908,3816.9,3816.7,4.22]
[1760193067912,2.644404,3817.0,3816.7,4.22]
[1760193068128,1.95274908,3816.9,3816.8,8.57578681]
[1760193068292,0.03274908,3816.9,3816.8,8.57578681]
[1760193068478,0.03274737,3817.1,3816.8,8.57578681]
[1760193068683,2.818509,3817.2,3816.8,8.57578681]
[1760193069014,0.6336,3817.1,3816.8,8.57578681]
[1760193069313,0.1304,3817.1,3816.8,8.57578681]
[1760193069478,16.7806757,3818.0,3817.0,2.61985852]
[1760193069677,0.1304,3817.5,3817.1,8.57578681]
[1760193069999,0.1304,3817.5,3817.2,11.65925134]
[1760193070179,0.03273708,3818.3,3817.4,2.61958401]
[1760193070384,0.1304,3818.0,3817.5,8.57578681]
[1760193070685,0.1304,3818.0,3817.5,11.19530037]
[1760193070891,0.03273622,3818.4,3817.6,3.08323692]
[1760193071091,0.03273622,3818.4,3817.7,2.61934355]
[1760193071411,4.53876352,3818.6,3817.9,2.61920288]
[1760193071412,0.03273451,3818.6,3817.9,2.61920288]
[1760193071619,0.03273451,3818.6,3818.0,2.61915572]
[1760193071828,2.65156079,3818.6,3817.6,2.61942549]
[1760193071981,2.65149535,3818.6,3817.5,0.4638]
[1760193072179,2.65149535,3818.6,3817.2,4.35578681]
[1760193072180,16.7806757,3817.7,3817.2,4.35578681]
[1760193072517,2.61974606,3817.2,3816.1,0.002]
[1760193072838,2.61985852,3817.0,3816.1,0.002]
[1760193073120,2.62027146,3816.4,3816.1,0.002]
[1760193073327,0.6336,3816.2,3816.1,0.002]
[1760193073485,5.17400773,3816.2,3816.1,0.002]
[1760193073991,2.5536,3816.2,3816.1,0.002]
[1760193074199,1.92,3816.2,3816.1,0.002]
[1760193075135,2.5536,3816.2,3816.1,0.002]
[1760193075317,5.17400773,3816.2,3816.1,0.002]
[1760193075499,17.96910873,3816.2,3816.1,0.002]
[1760193075819,16.59508273,3816.2,3816.1,0.002]
[1760193076520,8.27775973,3816.2,3816.1,0.002]
[1760193077828,18.99310973,3816.2,3816.1,0.002]
[1760193078006,9.44740273,3816.2,3816.1,0.002]
[1760193078703,5.18300773,3816.2,3816.1,0.002]
[1760193078904,20.85626873,3816.2,3816.1,0.002]
[1760193079105,9.76119873,3816.2,3816.1,0.002]
[1760193079317,9.08256273,3816.2,3816.1,0.002]
[1760193079522,8.80156273,3816.2,3816.1,0.002]
[1760193079696,2.5536,3816.2,3816.1,0.002]
[1760193080128,2.58635509,3816.2,3816.1,0.002]
[1760193080501,5.20676282,3816.2,3816.1,0.002]
[1760193080834,5.17400773,3816.2,3816.1,0.002]
[1760193081409,3.25428242,3815.8,3815.7,0.002]
[1760193081619,42.34376565,3815.8,3815.7,0.002]
[1760193081818,36.63766312,3815.8,3815.7,0.002]
[1760193082527,28.66739312,3815.8,3815.7,0.002]
[1760193083119,5.17428242,3815.8,3815.7,0.002]
[1760193083533,16.7806757,3816.5,3815.7,0.002]
[1760193083731,2.62048712,3816.1,3815.7,0.002]
[1760193083936,0.6336,3815.9,3815.7,0.002]
[1760193084444,0.03275509,3816.2,3815.7,0.002]
[1760193084659,0.6336,3816.1,3815.7,0.002]
[1760193084855,0.6336,3815.9,3815.7,0.002]
[1760193085014,0.6336,3815.9,3815.7,0.4658]
[1760193085215,0.6336,3815.9,3815.7,0.002]
[1760193085411,7.68426095,3815.8,3815.7,0.002]
[1760193085663,19.41127242,3815.8,3815.7,0.002]
[1760193085946,18.83721242,3815.8,3815.7,0.002]
[1760193086330,15.18799142,3815.8,3815.7,0.002]
[1760193086530,6.86568242,3815.8,3815.7,0.002]
[1760193086715,13.09222842,3815.8,3815.7,0.002]
[1760193086917,13.10122842,3815.8,3815.7,0.002]
[1760193087248,9.24702242,3815.8,3815.7,0.002]
[1760193087547,2.5536,3815.8,3815.7,0.002]
[1760193089349,5.17428242,3815.8,3815.7,0.002]
[1760193090421,2.5536,3815.8,3815.7,0.002]
[1760193092730,1.92,3815.8,3815.7,0.002]
[1760193094152,5.17428242,3815.8,3815.7,0.002]
[1760193094654,2.5536,3815.8,3815.7,0.002]
[1760193094950,5.17428242,3815.8,3815.7,0.002]
[1760193095119,18.08972342,3815.8,3815.7,0.002]
[1760193095322,19.48299542,3815.8,3815.7,0.002]
[1760193096334,13.64222042,3815.8,3815.7,0.002]
[1760193096515,7.32528242,3815.8,3815.7,0.002]
[1760193096846,7.31628242,3815.8,3815.7,0.002]
[1760193097262,7.65053842,3815.8,3815.7,0.002]
[1760193097485,7.65953842,3815.8,3815.7,0.002]
[1760193097646,7.41501842,3815.8,3815.7,0.002]
[1760193098377,22.07623642,3815.8,3815.7,0.002]
[1760193098877,21.59926542,3815.8,3815.7,0.002]
[1760193099478,21.64569542,3815.8,3815.7,0.002]
[1760193100350,22.22243842,3815.8,3815.7,0.002]
[1760193100557,19.09111342,3815.8,3815.7,0.002]
[1760193101199,19.42894792,3815.8,3815.7,0.002]
[1760193101346,29.31403892,3815.8,3815.7,0.002]
[1760193101743,51.5398586,3815.4,3815.3,0.002]
[1760193102141,51.5488586,3815.4,3815.3,0.002]
[1760193103171,24.0376326,3815.4,3815.3,0.002]
[1760193103369,28.7306426,3815.4,3815.3,0.002]
[1760193103743,28.7396426,3815.4,3815.3,0.002]
[1760193104174,9.62287067,3815.4,3815.3,0.002]
[1760193104379,30.6744516,3815.4,3815.3,0.002]
[1760193105442,30.6744516,3815.4,3814.9,0.002]
[1760193105443,25.17534897,3815.0,3814.9,0.002]
[1760193105787,20.90253897,3815.0,3814.9,0.002]
[1760193106079,20.91153897,3815.0,3814.9,0.002]
[1760193106247,8.83451897,3815.0,3814.9,0.002]
[1760193106451,8.16462997,3815.0,3814.9,0.002]
[1760193106847,5.17483197,3815.0,3814.9,0.002]
[1760193108949,13.20899997,3815.0,3814.9,0.002]
[1760193109160,13.21799997,3815.0,3814.9,0.002]
[1760193110687,8.27523297,3815.0,3814.9,0.002]
[1760193110890,5.17483197,3815.0,3814.9,0.002]
[1760193111251,2.5536,3815.0,3814.9,0.002]
[1760193111452,2.58636539,3815.0,3814.9,0.002]
[1760193111685,0.6336,3815.0,3814.9,0.002]
[1760193112195,0.6336,3815.0,3814.9,0.4495]
[1760193112576,0.764,3815.0,3814.9,0.4495]
[1760193114102,0.764,3815.0,3814.9,0.002]
[1760193114302,3.38523197,3815.0,3814.9,0.002]
[1760193114476,5.33799736,3815.0,3814.9,0.002]
[1760193114671,5.30523197,3815.0,3814.9,0.002]
[1760193118524,2.684,3815.0,3814.9,0.002]
[1760193118714,2.71676539,3815.0,3814.9,0.002]
[1760193119289,2.5536,3815.0,3814.9,0.435]
[1760193119906,2.684,3815.0,3814.9,0.435]
[1760193120723,2.684,3815.0,3814.9,0.002]
[1760193121431,2.0504,3815.0,3814.9,0.002]
[1760193121635,2.684,3815.0,3814.9,0.002]
[1760193122002,2.71676539,3815.0,3814.9,0.002]
[1760193122403,9.18238836,3815.0,3814.9,0.002]
[1760193122632,3.25510684,3814.6,3814.5,0.002]
[1760193122803,26.84788915,3814.6,3814.5,0.002]
[1760193123000,8.70913184,3814.6,3814.5,0.002]
[1760193123231,21.54740827,3814.6,3814.5,0.002]
[1760193123402,23.77798927,3814.6,3814.5,0.002]
[1760193124000,21.54040827,3814.6,3814.5,0.002]
[1760193124521,18.91890143,3814.6,3814.5,0.002]
[1760193124738,32.76826627,3814.6,3814.5,0.002]
[1760193124903,31.79117627,3814.6,3814.5,0.002]
[1760193125105,31.08437227,3814.6,3814.5,0.002]
[1760193125516,25.38755927,3814.6,3814.5,0.002]
[1760193126534,32.55750027,3814.6,3814.5,0.002]
[1760193127015,24.81495227,3814.6,3814.5,0.002]
[1760193127212,21.54740827,3814.6,3814.5,0.002]
[1760193127537,28.68705327,3814.6,3814.5,0.002]
[1760193128336,25.74205327,3814.6,3814.5,0.002]
[1760193128509,25.76241227,3814.6,3814.5,0.002]
[1760193129033,3.25524429,3814.4,3814.3,4.22]
[1760193129337,26.32316284,3814.4,3814.3,4.22]
[1760193129633,29.83297029,3814.4,3814.3,4.22]
[1760193130637,3.25538176,3814.2,3814.1,0.002]
[1760193130933,24.74387574,3813.8,3813.7,0.002]
[1760193131137,41.10917717,3813.8,3813.7,0.002]
[1760193131307,34.41439517,3813.8,3813.7,0.002]
[1760193131510,2.5536,3813.8,3813.7,0.002]
[1760193131734,5.20843244,3813.8,3813.7,0.002]
[1760193131934,5.17565674,3813.8,3813.7,0.002]
[1760193133030,11.22965174,3813.8,3813.7,0.002]
[1760193133222,5.17565674,3813.8,3813.7,0.002]
[1760193133419,2.5536,3813.8,3813.7,0.002]
[1760193133619,2.5863757,3813.8,3813.7,0.002]
[1760193133838,5.20843244,3813.8,3813.7,0.002]
[1760193134155,5.17565674,3813.8,3813.7,0.002]
[1760193135629,2.684,3813.8,3813.7,0.002]
[1760193137245,2.62205674,3813.8,3813.7,4.35778681]
[1760193137426,2.75245674,3813.8,3813.7,4.35778681]
[1760193138030,5.47163774,3813.8,3813.7,4.222]
[1760193138422,2.62205674,3813.8,3813.7,4.222]
[1760193138627,2.93718072,3815.2,3813.7,4.222]
[1760193138628,2.64168076,3813.9,3813.7,4.222]
[1760193138945,16.36530143,3814.4,3813.8,9.03500737]
[1760193139243,2.6213694,3814.8,3813.8,11.63083091]
[1760193139446,1.92,3814.5,3813.9,14.5]
[1760193139763,1.93967661,3814.5,3813.9,14.5]
[1760193140047,0.01967661,3814.5,3813.9,14.5]
[1760193140241,1.92,3814.1,3813.9,14.5]
[1760193140549,1.92,3814.6,3813.9,14.5]
[1760193140745,0.01967661,3814.5,3814.0,0.433]
[1760193140946,0.6336,3814.7,3814.1,9.24128681]
[1760193141249,2.62230138,3814.9,3814.1,11.86312644]
[1760193141546,0.01967661,3814.8,3814.2,14.5]
[1760193141860,1.92,3814.7,3814.2,14.5]
[1760193142247,0.001,3814.9,3814.3,0.433]
[1760193142432,0.02067661,3814.9,3814.3,3.0546978]
[1760193142641,0.001,3814.9,3814.4,8.60200325]
[1760193142855,0.001,3814.9,3814.5,17.12157556]
[1760193143058,0.01967661,3815.2,3814.6,8.60100187]
[1760193143059,0.65327661,3815.2,3814.6,8.60100187]
[1760193143256,0.01967661,3815.2,3814.6,8.57478681]
[1760193143460,0.01967661,3815.2,3814.6,11.1962301]
[1760193143660,0.6336,3815.2,3814.6,11.19628588]
[1760193143875,2.5536,3815.2,3814.7,14.933]
[1760193144032,2.57327661,3815.2,3814.8,0.433]
[1760193144381,2.57327661,3815.2,3814.9,0.433]
[1760193144664,2.57327661,3815.2,3814.9,14.933]
[1760193144864,0.01967661,3815.2,3814.9,14.5]
[1760193145034,0.02067661,3815.3,3814.9,14.5]
[1760193145235,0.6336,3815.2,3814.9,14.5]
[1760193145434,0.01967661,3815.1,3814.9,14.5]
[1760193145673,0.6336,3814.9,3814.6,8.57478681]
[1760193145968,1.92,3814.7,3814.6,8.57478681]
[1760193146167,1.93967661,3814.8,3814.6,8.57478681]
[1760193147035,2.62143812,3814.7,3814.6,8.57478681]
[1760193147435,0.6336,3814.6,3813.7,0.002]
[1760193147674,2.62191253,3814.1,3813.7,0.002]
[1760193147844,0.65327661,3814.5,3813.7,0.002]
[1760193147845,0.6336,3814.4,3813.7,0.002]
[1760193148046,1.92,3813.8,3813.7,0.002]
[1760193148265,0.01967661,3813.8,3813.7,0.002]
[1760193149564,5.18265674,3813.8,3813.7,0.002]
[1760193149867,5.17565674,3813.8,3813.7,0.002]
[1760193150275,5.18265674,3813.8,3813.7,0.002]
[1760193150674,17.78948074,3813.8,3813.7,0.002]
[1760193150872,17.01588074,3813.8,3813.7,0.002]
[1760193151368,16.65664474,3813.8,3813.7,0.002]
[1760193151539,14.24819474,3813.8,3813.7,0.002]
[1760193151941,10.64463574,3813.8,3813.7,0.002]
[1760193152350,5.17565674,3813.8,3813.7,0.002]
[1760193152975,8.13253274,3813.8,3813.7,0.002]
[1760193153179,8.13953274,3813.8,3813.7,0.002]
[1760193153375,14.56751574,3813.8,3813.7,0.002]
[1760193154373,35.80589844,3813.8,3813.7,0.002]
[1760193154745,24.17063774,3813.8,3813.7,0.002]
[1760193155373,5.18265674,3813.8,3813.7,0.002]
[1760193155574,25.59089174,3813.8,3813.7,0.002]
[1760193156581,26.02119274,3813.8,3813.7,0.002]
[1760193157380,25.80392174,3813.8,3813.7,0.002]
[1760193158266,25.17032174,3813.8,3813.7,0.002]
[1760193158454,25.80026874,3813.8,3813.7,0.002]
[1760193159355,25.81016874,3813.8,3813.7,0.002]
[1760193159555,42.64249253,3813.8,3813.7,0.002]
[1760193159960,42.31452053,3813.8,3813.7,0.002]
[1760193161882,42.31452053,3813.8,3812.1,0.2242]
[1760193161883,5.17648202,3812.6,3812.1,0.002]
[1760193162051,3.25730782,3811.4,3810.6,0.002]
[1760193162251,22.00963161,3811.4,3810.6,0.002]
[1760193162460,34.35085699,3811.4,3810.6,0.002]
[1760193162663,33.85739247,3811.4,3810.6,0.002]
[1760193163085,45.58478847,3811.4,3810.6,0.002]
[1760193163460,5.17778978,3810.7,3810.6,0.002]
[1760193163705,22.01011357,3810.7,3810.6,0.002]
[1760193164989,19.38592379,3810.7,3810.6,0.002]
[1760193165657,22.01011357,3810.7,3810.6,0.002]
[1760193165852,22.01511357,3810.7,3810.6,0.002]
[1760193166467,27.79857557,3810.7,3810.6,0.002]
[1760193166865,5.17799638,3810.4,3809.2,0.2222]
[1760193167070,5.17799638,3810.4,3809.3,2.62513156]
[1760193167264,5.18299638,3810.4,3808.9,0.6702]
[1760193167486,5.18299638,3810.4,3808.9,3.29561492]
[1760193167658,31.94674638,3810.4,3809.1,2.6252774]
[1760193167857,32.99110638,3810.4,3809.0,2.62535691]
[1760193168084,2.62502283,3809.5,3808.7,0.4538]
[1760193168285,16.8520004,3809.4,3808.2,2.6259125]
[1760193168488,19.45746784,3809.4,3808.6,2.62562206]
[1760193168812,16.83232379,3809.4,3808.7,2.62555632]
[1760193169089,16.83232379,3809.4,3808.8,2.6254834]
[1760193169591,2.5536,3809.7,3808.9,2.62537669]
[1760193169754,0.01967661,3809.6,3808.9,2.62537669]
[1760193169956,0.01967661,3809.6,3809.0,2.62535501]
[1760193170382,0.01967661,3809.6,3808.8,2.62748177]
[1760193170572,2.5536,3809.5,3808.8,2.62746758]
[1760193170889,0.01967661,3809.4,3808.8,2.62746758]
[1760193171084,0.01967661,3809.4,3808.9,2.62542615]
[1760193171671,0.01967661,3809.5,3809.1,2.62528904]
[1760193171968,0.1312,3809.1,3809.0,2.62535251]
[1760193172169,1.92,3809.8,3809.5,2.62499324]
[1760193172366,0.1312,3809.9,3809.6,0.4538]
[1760193172574,16.83232379,3810.6,3810.2,2.62449463]
[1760193172779,16.83232379,3810.6,3810.2,3.07829463]
[1760193172780,0.1312,3810.3,3810.2,3.07829463]
[1760193172990,0.1312,3810.3,3810.2,17.57829463]
[1760193173366,16.83232379,3811.2,3810.2,17.57829463]
[1760193173367,0.1312,3810.6,3810.2,14.9538]
[1760193173570,0.1312,3810.6,3810.2,14.5]
[1760193174012,0.1312,3810.6,3810.2,17.12451998]
[1760193174227,1.92,3810.5,3809.7,2.62481623]
[1760193174367,1.92,3810.5,3809.5,0.4538]
[1760193174368,0.1312,3810.1,3809.6,2.6249475]
[1760193174576,0.1312,3810.1,3809.9,2.62467581]
[1760193175304,0.1312,3810.1,3809.8,2.62480771]
[1760193175505,0.1312,3810.1,3809.9,2.62473542]
[1760193175815,0.1312,3810.1,3809.7,14.5]
[1760193176179,0.01967661,3810.1,3807.6,2.62627928]
[1760193176502,0.1312,3809.6,3809.2,2.62521996]
[1760193176813,0.1312,3809.6,3809.3,14.5]
[1760193177600,0.1312,3809.6,3809.0,2.62534569]
[1760193177806,0.1312,3809.6,3809.1,2.62528722]
[1760193178318,0.1312,3809.3,3809.1,2.62529206]
[1760193178480,0.1312,3809.3,3809.1,3.07909206]
[1760193178801,0.1312,3809.3,3809.0,14.5]
[1760193179303,0.1312,3809.3,3809.0,2.62534518]
[1760193179814,0.1312,3809.3,3808.9,14.5]
[1760193179980,0.1312,3809.0,3808.8,0.002]
[1760193180596,0.1312,3809.0,3808.8,2.62749539]
[1760193182309,0.1312,3809.0,3808.8,0.002]
[1760193183379,0.1312,3809.0,3808.8,3.05688436]
[1760193183578,0.1312,3809.0,3808.8,2.62748436]
[1760193183782,0.1312,3809.0,3808.8,0.002]
[1760193183980,0.1312,3809.0,3808.8,14.502]
[1760193184280,0.1312,3809.0,3808.8,17.1274724]
[1760193184479,0.1312,3809.0,3808.9,2.62542991]
[1760193184675,0.6336,3809.7,3809.1,2.62527078]
[1760193184912,16.83232379,3810.3,3808.8,0.002]
[1760193185100,16.83232379,3811.0,3808.9,2.62542991]
[1760193185503,1.92,3810.9,3810.2,2.62449829]
[1760193185890,1.92,3810.9,3810.3,2.62445884]
[1760193186285,16.83232379,3811.5,3810.3,0.4294]
[1760193186619,0.005,3812.5,3810.1,0.2368]
[1760193186832,16.83232379,3810.8,3809.8,0.4294]
[1760193186984,0.001,3810.3,3809.9,17.12473718]
[1760193187185,0.001,3810.3,3809.9,14.9294]
[1760193187432,0.001,3810.3,3809.9,14.5]
[1760193187642,0.001,3810.3,3810.2,2.86133414]
[1760193187849,0.001,3810.7,3810.2,0.2368]
[1760193188049,0.001,3810.7,3810.3,3.05384713]
[1760193188250,0.001,3810.7,3810.6,2.62425864]
[1760193188606,0.001,3810.7,3810.6,3.05365864]
[1760193188822,0.001,3810.7,3810.6,3.62146258]
[1760193189130,0.001,3811.1,3811.0,2.6239832]
[1760193189435,0.01967661,3812.5,3811.8,2.62341061]
[1760193189651,0.01967661,3812.5,3811.8,3.05281061]
[1760193189652,0.65327661,3812.5,3811.8,3.05281061]
[1760193189808,1.93967661,3812.5,3811.8,0.4294]
[1760193190208,0.01967661,3812.5,3812.1,2.62320392]
[1760193190414,2.62247812,3813.2,3812.2,0.4294]
[1760193190415,2.62246931,3813.2,3812.2,0.4294]
[1760193190717,1.93967661,3813.1,3812.3,2.62307837]
[1760193190912,0.01967661,3813.1,3812.2,3.05255412]
[1760193191250,0.01967661,3813.1,3812.4,2.62301724]
[1760193191451,16.83232379,3812.7,3811.8,0.30530256]
[1760193191743,16.83232379,3812.7,3811.3,0.4294]
[1760193191744,0.65327661,3812.6,3811.3,0.4294]
[1760193191914,0.65327661,3812.6,3811.8,2.62342504]
[1760193192116,2.62234417,3813.4,3809.9,3.2774788]
[1760193192117,1.92,3813.2,3812.3,2.6230816]
[1760193192317,0.01967661,3813.1,3812.4,2.62298817]
[1760193192836,2.64224586,3813.1,3812.3,17.55245876]
[1760193193541,0.01967661,3813.1,3812.5,2.62289306]
[1760193194625,0.01967661,3813.1,3812.6,14.5]
[1760193195024,2.0504,3812.9,3812.6,14.5]
[1760193195238,0.15007661,3812.9,3812.3,3.05248411]
[1760193195566,0.15007661,3812.9,3812.3,0.4294]
[1760193195717,0.15007661,3812.9,3812.4,14.5]
[1760193195919,0.6336,3812.4,3811.2,0.4294]
[1760193196117,1.92,3812.0,3811.2,0.4294]
[1760193196348,0.01967661,3811.9,3811.3,17.12376271]
[1760193196645,0.01967661,3811.9,3811.3,14.5]
[1760193196945,0.01967661,3811.9,3810.7,0.4294]
[1760193197149,2.62363236,3811.6,3810.8,2.62411135]
[1760193197453,0.01967661,3811.5,3810.9,14.5]
[1760193198524,2.64324705,3811.6,3810.9,17.12404221]
[1760193198734,0.01967661,3811.6,3810.9,17.12404221]
[1760193199047,0.01967661,3811.6,3809.7,0.4294]
[1760193199048,2.62431237,3810.6,3809.7,0.4294]
[1760193199247,0.01967661,3810.7,3809.7,0.73483428]
[1760193199437,0.01967661,3810.7,3809.8,2.6248097]
[1760193199636,1.92,3810.6,3809.8,3.0542097]
[1760193200162,1.92,3810.6,3809.9,2.62471421]
[1760193200459,1.93967661,3810.7,3809.9,2.62472692]
[1760193200822,1.93967661,3810.7,3809.8,0.4294]
[1760193201023,1.93967661,3810.7,3810.0,2.62461403]
[1760193201238,2.64387648,3810.7,3809.8,3.05414944]
[1760193201453,2.64387648,3810.7,3809.9,2.62472654]
[1760193201632,0.01967661,3810.7,3809.8,3.05419893]
[1760193201844,0.01967661,3810.7,3810.0,2.62464842]
[1760193202042,0.28188404,3810.7,3809.8,0.4294]
[1760193202323,0.28188404,3810.7,3809.5,0.4294]
[1760193202324,0.6336,3810.6,3809.5,0.4294]
[1760193202703,0.6336,3810.6,3808.8,0.002]
[1760193202704,2.62473854,3810.0,3809.1,0.4294]
[1760193202995,0.01967661,3809.9,3808.8,0.002]
[1760193203141,0.01967661,3809.9,3808.9,0.4294]
[1760193203342,2.64427963,3810.1,3809.2,2.62521237]
[1760193203684,2.62470662,3810.0,3809.2,2.62521237]
[1760193203887,0.01967661,3809.9,3809.2,3.05461237]
[1760193204180,0.01967661,3809.9,3809.4,2.6250764]
[1760193204474,0.001,3810.3,3809.5,0.02625016]
[1760193204662,0.001,3810.3,3810.1,2.62457732]
[1760193205075,0.001,3810.3,3810.2,0.4294]
[1760193205480,0.001,3810.3,3810.2,3.08017948]
[1760193206165,0.001,3810.3,3810.2,3.81866128]
[1760193207700,0.001,3810.3,3810.2,3.68746128]
[1760193207986,0.001,3810.3,3810.2,3.66121594]
[1760193208153,0.001,3810.3,3810.2,3.05393414]
[1760193209670,0.001,3810.3,3809.8,0.4541]
[1760193209854,0.001,3810.3,3810.2,0.6732]
[1760193210380,0.001,3810.3,3810.2,3.29773414]
[1760193210959,0.001,3810.3,3810.2,3.32397948]
[1760193211145,0.001,3810.3,3810.2,3.29773414]
[1760193211944,0.001,3810.3,3810.2,3.32397948]
[1760193212584,0.001,3810.3,3809.8,0.4541]
[1760193212947,0.001,3810.3,3809.9,0.4541]
[1760193213560,0.001,3810.3,3809.6,2.62493822]
[1760193213763,0.001,3810.3,3809.5,0.4541]
[1760193214024,0.001,3810.3,3809.6,2.62489062]
[1760193214308,0.001,3810.3,3809.7,2.62486048]
[1760193214812,0.001,3810.3,3809.8,2.62480175]
[1760193214977,0.001,3810.3,3809.6,0.4541]
[1760193215281,0.001,3810.3,3809.7,2.62484874]
[1760193215793,0.001,3810.3,3809.9,2.62472999]
[1760193215976,0.001,3810.3,3810.0,0.4541]
[1760193216179,0.001,3810.3,3810.2,2.84363414]
[1760193216576,0.001,3810.3,3810.2,3.65375289]
[1760193216986,0.001,3810.3,3810.2,3.29773414]
[1760193217794,0.001,3810.3,3810.2,3.42893414]
[1760193217998,0.001,3810.3,3810.2,0.8044]
[1760193218178,0.001,3810.3,3810.2,0.1312]
[1760193218887,0.001,3810.3,3810.2,3.20983414]
[1760193219109,0.001,3810.3,3810.2,3.23607948]
[1760193219308,0.001,3810.3,3810.2,3.84406461]
[1760193219514,0.001,3810.3,3810.2,3.81781927]
[1760193220022,0.001,3810.3,3809.7,2.62482445]
[1760193220182,0.001,3810.3,3809.7,0.4541]
[1760193220381,2.62454827,3810.2,3809.7,0.4541]
[1760193220686,0.001,3810.3,3809.5,2.62499742]
[1760193220687,2.6254834,3810.3,3809.5,2.62499742]
[1760193220893,0.001,3810.3,3809.2,0.4541]
[1760193221116,0.001,3810.3,3809.3,0.48035154]
[1760193221417,0.001,3810.3,3810.2,2.84363414]
[1760193221578,0.001,3810.7,3810.6,2.62425864]
[1760193221779,0.001,3810.7,3810.6,2.65050122]
[1760193222016,0.001,3810.7,3810.6,3.10460122]
[1760193223095,0.001,3810.7,3810.2,2.84356845]
[1760193223297,0.001,3810.7,3810.3,2.62444903]
[1760193223817,0.001,3810.7,3810.4,2.62439149]
[1760193223985,0.001,3810.7,3810.4,3.07959149]
[1760193224182,0.001,3810.7,3810.5,0.4552]
[1760193224382,0.001,3810.7,3810.2,0.4552]
[1760193224910,0.001,3810.7,3810.2,3.07973347]
[1760193225121,0.001,3810.7,3810.3,3.10589392]
[1760193225494,0.001,3810.7,3810.4,0.4552]
[1760193225889,0.001,3810.7,3810.4,3.0795573]
[1760193226089,0.001,3810.7,3810.5,0.48144327]
[1760193226908,0.001,3810.7,3810.6,3.07945864]
[1760193229917,0.001,3810.7,3810.6,3.21065864]
[1760193231721,0.001,3811.1,3811.0,2.6239832]
[1760193231887,0.001,3811.5,3811.4,2.62370782]
[1760193232092,0.001,3811.5,3811.1,0.4552]
[1760193232626,0.001,3811.5,3811.2,0.4552]
[1760193233823,0.001,3811.5,3810.4,3.07959381]
[1760193233824,2.6238107,3811.3,3810.4,3.07959381]
[1760193234030,2.6238107,3811.3,3810.5,0.54018114]
[1760193234393,2.62403298,3811.0,3810.4,0.4552]
[1760193234710,1.92,3811.3,3810.5,2.62431793]
[1760193235031,2.64346067,3811.3,3810.6,0.4552]
[1760193235328,0.001,3811.5,3810.7,0.02624189]
[1760193235504,2.62370923,3811.4,3810.8,0.4552]
[1760193235829,2.62370923,3811.4,3810.9,0.02624052]